[Event "Early-Titled-Tuesday-Blitz-March-05-2024"]
[Site "Chess.com"]
[Date "2024.03.05"]
[Round "3"]
[White "Volodar_Murzin"]
[Black "AlexTruskavetsky"]
[Result "1-0"]
[WhiteElo "2950"]
[BlackElo "2690"]
[TimeControl "180+1"]
[EndTime "8:32:47 PST"]
[Termination "Volodar_Murzin won by resignation"]

1. d4 {[%clk 0:03:00.9]} 1... Nf6 {[%clk 0:02:59]} 2. Nf3 {[%clk 0:03:01]} 2...
e6 {[%clk 0:02:59.2]} 3. Bg5 {[%clk 0:03:00.1]} 3... Be7 {[%clk 0:02:58.5]} 4.
Nbd2 {[%clk 0:02:59.8]} 4... d5 {[%clk 0:02:57.5]} 5. e3 {[%clk 0:02:58.9]} 5...
O-O {[%clk 0:02:57.4]} 6. Bd3 {[%clk 0:02:59.3]} 6... c5 {[%clk 0:02:57.8]} 7.
c3 {[%clk 0:02:59.3]} 7... Nc6 {[%clk 0:02:58]} 8. Ne5 {[%clk 0:02:53.1]} 8...
h6 {[%clk 0:02:56.7]} 9. Bf4 {[%clk 0:02:48.8]} 9... Bd6 {[%clk 0:02:53.1]} 10.
Qf3 {[%clk 0:02:41.5]} 10... Qc7 {[%clk 0:02:23.3]} 11. Nxc6 {[%clk 0:02:29]}
11... Bxf4 {[%clk 0:02:22]} 12. Qxf4 {[%clk 0:02:23.4]} 12... Qxc6 {[%clk
0:02:22.1]} 13. Nf3 {[%clk 0:02:23.2]} 13... Nd7 {[%clk 0:01:45.7]} 14. h4
{[%clk 0:02:17.9]} 14... f6 {[%clk 0:01:34.1]} 15. Qg3 {[%clk 0:02:11.5]} 15...
cxd4 {[%clk 0:00:59.4]} 16. cxd4 {[%clk 0:01:54.9]} 16... Qb6 {[%clk 0:00:52.4]}
17. O-O {[%clk 0:01:52.5]} 17... f5 {[%clk 0:00:48.9]} 18. b3 {[%clk 0:01:43.2]}
18... Nf6 {[%clk 0:00:49.2]} 19. Ne5 {[%clk 0:01:41.6]} 19... Bd7 {[%clk
0:00:46.7]} 20. Rfc1 {[%clk 0:01:40.5]} 20... Rfc8 {[%clk 0:00:31.9]} 21. Qf3
{[%clk 0:01:35.6]} 21... Bb5 {[%clk 0:00:24.8]} 22. Qd1 {[%clk 0:01:29.4]} 22...
Bxd3 {[%clk 0:00:24.8]} 23. Nxd3 {[%clk 0:01:30.3]} 23... Qd6 {[%clk 0:00:24]}
24. Qe1 {[%clk 0:01:25.7]} 24... b6 {[%clk 0:00:22.3]} 25. Qb4 {[%clk
0:01:20.2]} 25... Qxb4 {[%clk 0:00:12.7]} 26. Nxb4 {[%clk 0:01:21.1]} 26... Kf7
{[%clk 0:00:12]} 27. Nc6 {[%clk 0:01:09.1]} 27... Ke8 {[%clk 0:00:09.2]} 28. b4
{[%clk 0:01:01.1]} 28... Rc7 {[%clk 0:00:05.6]} 29. b5 {[%clk 0:01:00.7]} 29...
Rac8 {[%clk 0:00:05.9]} 30. a4 {[%clk 0:01:01.1]} 30... a5 {[%clk 0:00:04.9]}
31. f3 {[%clk 0:00:37.9]} 31... Ng8 {[%clk 0:00:05.5]} 32. Re1 {[%clk
0:00:17.5]} 32... Ne7 {[%clk 0:00:05.4]} 33. Ne5 {[%clk 0:00:18.2]} 33... Rc2
{[%clk 0:00:05.1]} 34. Kh2 {[%clk 0:00:14.6]} 34... Rd2 {[%clk 0:00:05.5]} 35.
Kg3 {[%clk 0:00:14.5]} 35... Rcc2 {[%clk 0:00:05.6]} 36. Rg1 {[%clk 0:00:15]}
36... g5 {[%clk 0:00:06.2]} 37. hxg5 {[%clk 0:00:14.4]} 37... hxg5 {[%clk
0:00:07.1]} 38. Kh3 {[%clk 0:00:10.7]} 38... f4 {[%clk 0:00:07]} 39. exf4 {[%clk
0:00:09.7]} 39... gxf4 {[%clk 0:00:07.9]} 40. Rad1 {[%clk 0:00:08.6]} 40... Nf5
{[%clk 0:00:07.8]} 41. Ng6 {[%clk 0:00:09.1]} 41... Nxd4 {[%clk 0:00:03.4]} 42.
Nxf4 {[%clk 0:00:09.4]} 42... Kd7 {[%clk 0:00:03.4]} 43. Rge1 {[%clk 0:00:09.6]}
43... Rxd1 {[%clk 0:00:02.6]} 44. Rxd1 {[%clk 0:00:09.7]} 44... Nf5 {[%clk
0:00:03.5]} 45. g4 {[%clk 0:00:08.6]} 45... Ne3 {[%clk 0:00:03.4]} 46. Re1
{[%clk 0:00:07.1]} 46... Rc3 {[%clk 0:00:04]} 47. g5 {[%clk 0:00:06.5]} 47... d4
{[%clk 0:00:04.3]} 48. g6 {[%clk 0:00:06.8]} 48... Nf5 {[%clk 0:00:04.8]} 49.
Kg4 {[%clk 0:00:06.6]} 49... Rc2 {[%clk 0:00:05.3]} 50. Kg5 {[%clk 0:00:04.6]}
50... Rc8 {[%clk 0:00:03]} 51. Rxe6 {[%clk 0:00:04.9]} 51... d3 {[%clk
0:00:02.6]} 52. Kxf5 {[%clk 0:00:05.1]} 52... d2 {[%clk 0:00:02.5]} 53. Re5
{[%clk 0:00:05.8]} 53... d1=Q {[%clk 0:00:02.7]} 54. Rd5+ {[%clk 0:00:06.5]}
54... Qxd5+ {[%clk 0:00:03.4]} 55. Nxd5 {[%clk 0:00:07.4]} 55... Kd6 {[%clk
0:00:04]} 56. Nxb6 {[%clk 0:00:07.5]} 56... Rf8+ {[%clk 0:00:04.6]} 57. Kg5
{[%clk 0:00:07.2]} 57... Ke6 {[%clk 0:00:05.3]} 58. f4 {[%clk 0:00:06.6]} 58...
Rf5+ {[%clk 0:00:05.5]} 59. Kg4 {[%clk 0:00:06.6]} 59... Kf6 {[%clk 0:00:04.1]}
60. Nc4 {[%clk 0:00:05.7]} 60... Kxg6 {[%clk 0:00:04.1]} 61. b6 {[%clk
0:00:06.4]} 61... Rf8 {[%clk 0:00:03.6]} 62. Nxa5 {[%clk 0:00:06.4]} 62... Rb8
{[%clk 0:00:04]} 63. Nc4 {[%clk 0:00:07.1]} 63... Kf6 {[%clk 0:00:04.2]} 64. a5
{[%clk 0:00:07.7]} 64... Ke6 {[%clk 0:00:05.1]} 65. a6 {[%clk 0:00:08.4]} 65...
Kd5 {[%clk 0:00:05.8]} 66. a7 {[%clk 0:00:09]} 66... Rg8+ {[%clk 0:00:06.5]} 67.
Kf5 {[%clk 0:00:09]} 67... Kc6 {[%clk 0:00:07.1]} 68. Ke6 {[%clk 0:00:08.8]}
68... Kb7 {[%clk 0:00:07.2]} 69. f5 {[%clk 0:00:09.3]} 69... Re8+ {[%clk
0:00:07.6]} 70. Kd7 {[%clk 0:00:09.7]} 70... Rf8 {[%clk 0:00:07.4]} 71. Ke6
{[%clk 0:00:10.3]} 71... Re8+ {[%clk 0:00:07.4]} 72. Kf7 {[%clk 0:00:10.1]}
72... Rd8 {[%clk 0:00:07.8]} 73. f6 {[%clk 0:00:10.3]} 73... Rd4 {[%clk
0:00:08.3]} 74. Na5+ {[%clk 0:00:10.6]} 74... Ka8 {[%clk 0:00:07.8]} 75. b7+
{[%clk 0:00:11.3]} 75... Kxa7 {[%clk 0:00:08.4]} 76. Nc6+ {[%clk 0:00:12.2]}
76... Kxb7 {[%clk 0:00:09.2]} 77. Nxd4 {[%clk 0:00:13.1]} 1-0

[Event "Early-Titled-Tuesday-Blitz-March-05-2024"]
[Site "Chess.com"]
[Date "2024.03.05"]
[Round "3"]
[White "PolandHussars"]
[Black "MarijaKuznecova"]
[Result "1/2-1/2"]
[WhiteElo "2555"]
[BlackElo "2345"]
[TimeControl "180+1"]
[EndTime "8:32:47 PST"]
[Termination "Game drawn - insufficient material"]

1. e4 {[%clk 0:02:58.8]} 1... c5 {[%clk 0:02:59.6]} 2. Ne2 {[%clk 0:02:58.4]}
2... Nc6 {[%clk 0:02:59.4]} 3. g3 {[%clk 0:02:58.5]} 3... g6 {[%clk 0:02:58.7]}
4. Bg2 {[%clk 0:02:58.8]} 4... Bg7 {[%clk 0:02:59.2]} 5. c3 {[%clk 0:02:59.3]}
5... e5 {[%clk 0:02:58.8]} 6. d3 {[%clk 0:02:59.2]} 6... d6 {[%clk 0:02:59.1]}
7. Be3 {[%clk 0:02:59.5]} 7... Nge7 {[%clk 0:02:59.5]} 8. d4 {[%clk 0:02:59.7]}
8... exd4 {[%clk 0:02:58.3]} 9. cxd4 {[%clk 0:03:00]} 9... O-O {[%clk
0:02:42.1]} 10. Nbc3 {[%clk 0:02:58.7]} 10... cxd4 {[%clk 0:02:36.5]} 11. Nxd4
{[%clk 0:02:58.1]} 11... Be6 {[%clk 0:02:35.3]} 12. Nxe6 {[%clk 0:02:55]} 12...
fxe6 {[%clk 0:02:36.2]} 13. O-O {[%clk 0:02:54.8]} 13... Rc8 {[%clk 0:02:32.5]}
14. Qb3 {[%clk 0:02:54.2]} 14... Qd7 {[%clk 0:02:12.9]} 15. Bh3 {[%clk
0:02:53.4]} 15... Nd8 {[%clk 0:02:12.8]} 16. Bxa7 {[%clk 0:02:46.8]} 16... Rf3
{[%clk 0:02:05.8]} 17. Be3 {[%clk 0:02:35.8]} 17... Nec6 {[%clk 0:01:52.7]} 18.
Bg2 {[%clk 0:02:29.3]} 18... Rf8 {[%clk 0:01:49.7]} 19. Rad1 {[%clk 0:02:23.4]}
19... Na5 {[%clk 0:01:24.7]} 20. Qb5 {[%clk 0:02:12.3]} 20... Qxb5 {[%clk
0:01:23.8]} 21. Nxb5 {[%clk 0:02:11.9]} 21... Bxb2 {[%clk 0:01:24.3]} 22. Nxd6
{[%clk 0:02:06.7]} 22... Rc2 {[%clk 0:01:24.1]} 23. Rd2 {[%clk 0:02:00.7]} 23...
Rxd2 {[%clk 0:01:16.8]} 24. Bxd2 {[%clk 0:02:01.6]} 24... Ndc6 {[%clk
0:01:17.1]} 25. f4 {[%clk 0:01:56]} 25... Rd8 {[%clk 0:01:09.8]} 26. e5 {[%clk
0:01:55.6]} 26... Ba3 {[%clk 0:00:59.3]} 27. Rb1 {[%clk 0:01:38.5]} 27... Bxd6
{[%clk 0:00:49.9]} 28. exd6 {[%clk 0:01:39.4]} 28... Rxd6 {[%clk 0:00:50.4]} 29.
Be1 {[%clk 0:01:39]} 29... Rd7 {[%clk 0:00:35.3]} 30. Bf1 {[%clk 0:01:32.2]}
30... Rd4 {[%clk 0:00:27.8]} 31. Rb5 {[%clk 0:01:15.4]} 31... Ra4 {[%clk
0:00:27.3]} 32. Rb2 {[%clk 0:01:14.8]} 32... Nd4 {[%clk 0:00:20.6]} 33. Kg2
{[%clk 0:01:08.4]} 33... b5 {[%clk 0:00:17.7]} 34. Bf2 {[%clk 0:00:57.9]} 34...
Nc4 {[%clk 0:00:13.5]} 35. Bxc4 {[%clk 0:00:52.2]} 35... Rxc4 {[%clk 0:00:14.4]}
36. Kh3 {[%clk 0:00:46.4]} 36... b4 {[%clk 0:00:14]} 37. Rd2 {[%clk 0:00:44.9]}
37... Nf3 {[%clk 0:00:10.1]} 38. Rb2 {[%clk 0:00:42.4]} 38... Nd4 {[%clk
0:00:09.9]} 39. Be1 {[%clk 0:00:40.9]} 39... Nc2 {[%clk 0:00:09.3]} 40. Bd2
{[%clk 0:00:39.8]} 40... Kf7 {[%clk 0:00:09.8]} 41. Kg2 {[%clk 0:00:36.8]} 41...
Kf6 {[%clk 0:00:09.5]} 42. Kf2 {[%clk 0:00:36.1]} 42... e5 {[%clk 0:00:10]} 43.
Ke2 {[%clk 0:00:32.7]} 43... e4 {[%clk 0:00:08.7]} 44. Kd1 {[%clk 0:00:30.5]}
44... Nd4 {[%clk 0:00:03.4]} 45. Rxb4 {[%clk 0:00:29.6]} 45... Rxb4 {[%clk
0:00:02.8]} 46. Bxb4 {[%clk 0:00:30.5]} 46... Nf3 {[%clk 0:00:03.4]} 47. h3
{[%clk 0:00:25.2]} 47... Ke6 {[%clk 0:00:02.7]} 48. a4 {[%clk 0:00:25.3]} 48...
Kd5 {[%clk 0:00:03.3]} 49. a5 {[%clk 0:00:25.3]} 49... Kc6 {[%clk 0:00:04]} 50.
h4 {[%clk 0:00:24.5]} 50... Kb5 {[%clk 0:00:04.1]} 51. Bc3 {[%clk 0:00:24.2]}
51... Nh2 {[%clk 0:00:02.1]} 52. Ke2 {[%clk 0:00:23.7]} 52... Ng4 {[%clk
0:00:02.6]} 53. Be1 {[%clk 0:00:23.2]} 53... h5 {[%clk 0:00:03]} 54. Bc3 {[%clk
0:00:22.5]} 54... Ka6 {[%clk 0:00:02.9]} 55. Kd2 {[%clk 0:00:20.5]} 55... Kb5
{[%clk 0:00:03.4]} 56. Kc2 {[%clk 0:00:20.8]} 56... Ne3+ {[%clk 0:00:04.1]} 57.
Kb3 {[%clk 0:00:20.1]} 57... Nd5 {[%clk 0:00:04.4]} 58. Be1 {[%clk 0:00:20.1]}
58... Ne3 {[%clk 0:00:03.7]} 59. Kc3 {[%clk 0:00:20.2]} 59... Nf5 {[%clk
0:00:03.5]} 60. Kb3 {[%clk 0:00:20.1]} 60... Nd4+ {[%clk 0:00:03.4]} 61. Kc3
{[%clk 0:00:20.1]} 61... Nf3 {[%clk 0:00:03.8]} 62. Bf2 {[%clk 0:00:19.5]} 62...
Kxa5 {[%clk 0:00:04.4]} 63. Kc4 {[%clk 0:00:20]} 63... Ka4 {[%clk 0:00:03]} 64.
Kd5 {[%clk 0:00:20.4]} 64... Nd2 {[%clk 0:00:02.7]} 65. Be3 {[%clk 0:00:20.4]}
65... Nf1 {[%clk 0:00:03.5]} 66. Kxe4 {[%clk 0:00:20.6]} 66... Nxg3+ {[%clk
0:00:03.5]} 67. Kf3 {[%clk 0:00:21]} 67... Nf5 {[%clk 0:00:04.4]} 68. Bf2 {[%clk
0:00:21.5]} 68... Kb5 {[%clk 0:00:04.6]} 69. Ke4 {[%clk 0:00:22.4]} 69... Kc6
{[%clk 0:00:05.2]} 70. Ke5 {[%clk 0:00:23.1]} 70... Kd7 {[%clk 0:00:05.3]} 71.
Kf6 {[%clk 0:00:23.5]} 71... Ne7 {[%clk 0:00:05.9]} 72. Bc5 {[%clk 0:00:23.6]}
72... Nd5+ {[%clk 0:00:06.4]} 73. Kg5 {[%clk 0:00:23.9]} 73... Ke6 {[%clk
0:00:06.2]} 74. Kxg6 {[%clk 0:00:22.4]} 74... Nxf4+ {[%clk 0:00:06.6]} 75. Kg5
{[%clk 0:00:22.7]} 75... Ng2 {[%clk 0:00:07.3]} 76. Kxh5 {[%clk 0:00:22.9]}
76... Nxh4 {[%clk 0:00:08.2]} 1/2-1/2

[Event "Early-Titled-Tuesday-Blitz-March-05-2024"]
[Site "Chess.com"]
[Date "2024.03.05"]
[Round "3"]
[White "mertfelin"]
[Black "abelmat"]
[Result "0-1"]
[WhiteElo "2338"]
[BlackElo "2052"]
[TimeControl "180+1"]
[EndTime "8:32:50 PST"]
[Termination "abelmat won by resignation"]

1. e4 {[%clk 0:03:00.4]} 1... e6 {[%clk 0:02:58.6]} 2. d4 {[%clk 0:03:00.6]}
2... d5 {[%clk 0:02:59.4]} 3. Nc3 {[%clk 0:03:00.1]} 3... dxe4 {[%clk
0:02:59.2]} 4. Nxe4 {[%clk 0:03:00.3]} 4... Nd7 {[%clk 0:03:00.1]} 5. Nf3 {[%clk
0:03:00.3]} 5... Ngf6 {[%clk 0:03:00.5]} 6. Nxf6+ {[%clk 0:03:00.9]} 6... Nxf6
{[%clk 0:03:00.5]} 7. c3 {[%clk 0:02:59.6]} 7... c5 {[%clk 0:03:00.6]} 8. Bd3
{[%clk 0:02:51.1]} 8... cxd4 {[%clk 0:03:00.2]} 9. cxd4 {[%clk 0:02:51.7]} 9...
Bd6 {[%clk 0:02:56.6]} 10. O-O {[%clk 0:02:50.9]} 10... O-O {[%clk 0:02:56]} 11.
Re1 {[%clk 0:02:50.1]} 11... b6 {[%clk 0:02:56.2]} 12. Ne5 {[%clk 0:02:45.9]}
12... Bb7 {[%clk 0:02:56.1]} 13. a4 {[%clk 0:02:44.9]} 13... Bb4 {[%clk
0:02:49]} 14. Bd2 {[%clk 0:02:43.4]} 14... Qxd4 {[%clk 0:02:37.5]} 15. Bxb4
{[%clk 0:02:39.2]} 15... Qxb4 {[%clk 0:02:36.2]} 16. Qe2 {[%clk 0:02:39.4]}
16... Rad8 {[%clk 0:02:18.7]} 17. Red1 {[%clk 0:02:39.5]} 17... Qf4 {[%clk
0:02:12.4]} 18. f3 {[%clk 0:02:35.9]} 18... g6 {[%clk 0:01:59.5]} 19. Kh1 {[%clk
0:02:31.1]} 19... Nh5 {[%clk 0:01:56.7]} 20. Ng4 {[%clk 0:02:29]} 20... Qg5
{[%clk 0:01:40.4]} 21. Be4 {[%clk 0:02:24.6]} 21... Bxe4 {[%clk 0:01:31]} 22.
Qxe4 {[%clk 0:02:21]} 22... Rxd1+ {[%clk 0:01:06]} 23. Rxd1 {[%clk 0:02:21]}
23... Rd8 {[%clk 0:01:05.1]} 24. Re1 {[%clk 0:02:16.2]} 24... Qh4 {[%clk
0:00:51.5]} 25. Kg1 {[%clk 0:02:11.8]} 25... Qg5 {[%clk 0:00:42.5]} 26. b4
{[%clk 0:01:49.6]} 26... Nf6 {[%clk 0:00:34.7]} 27. Nxf6+ {[%clk 0:01:45]} 27...
Qxf6 {[%clk 0:00:34]} 28. Kh1 {[%clk 0:01:34.6]} 28... Qc3 {[%clk 0:00:29.8]}
29. h4 {[%clk 0:01:31.1]} 29... Rd4 {[%clk 0:00:22.5]} 30. Qa8+ {[%clk
0:01:29.5]} 30... Kg7 {[%clk 0:00:22]} 31. Re4 {[%clk 0:01:29.4]} 31... Qxb4
{[%clk 0:00:14.2]} 32. Rxd4 {[%clk 0:01:02.3]} 32... Qxd4 {[%clk 0:00:13.7]} 33.
Qxa7 {[%clk 0:01:03.1]} 33... Qxh4+ {[%clk 0:00:12.7]} 34. Kg1 {[%clk
0:01:03.7]} 34... Qe1+ {[%clk 0:00:12.1]} 35. Kh2 {[%clk 0:01:04.4]} 35... Qe3
{[%clk 0:00:11.3]} 36. Qd7 {[%clk 0:01:03.7]} 36... Qe5+ {[%clk 0:00:11.1]} 37.
Kg1 {[%clk 0:01:04.1]} 37... Qe3+ {[%clk 0:00:10.5]} 38. Kf1 {[%clk 0:01:03.7]}
38... h5 {[%clk 0:00:10.3]} 39. Qb5 {[%clk 0:01:02.7]} 39... h4 {[%clk
0:00:09.9]} 40. Qc4 {[%clk 0:01:01.7]} 40... h3 {[%clk 0:00:09.6]} 41. gxh3
{[%clk 0:01:02.6]} 41... Qxf3+ {[%clk 0:00:09]} 42. Ke1 {[%clk 0:01:03]} 42...
Qg3+ {[%clk 0:00:08.1]} 43. Ke2 {[%clk 0:01:02.2]} 43... Qxh3 {[%clk 0:00:07.4]}
44. Qd4+ {[%clk 0:01:01.4]} 44... Kh7 {[%clk 0:00:07]} 45. Qxb6 {[%clk
0:01:02.3]} 45... Qg4+ {[%clk 0:00:05.8]} 46. Kf1 {[%clk 0:01:01.7]} 46... Qxa4
{[%clk 0:00:05.8]} 47. Qd8 {[%clk 0:01:00.9]} 47... Qf4+ {[%clk 0:00:05.5]} 48.
Kg2 {[%clk 0:01:01.3]} 48... Kg7 {[%clk 0:00:05.7]} 49. Qd7 {[%clk 0:01:01.1]}
49... Qf6 {[%clk 0:00:06.5]} 50. Qd3 {[%clk 0:01:01.2]} 50... e5 {[%clk
0:00:06.7]} 51. Qd5 {[%clk 0:01:00.1]} 51... Qf4 {[%clk 0:00:06.5]} 52. Qb7
{[%clk 0:00:59.8]} 52... Qd4 {[%clk 0:00:06.1]} 53. Kf1 {[%clk 0:00:58.8]} 53...
e4 {[%clk 0:00:05.7]} 54. Ke2 {[%clk 0:00:58.1]} 54... Qd3+ {[%clk 0:00:05.5]}
55. Ke1 {[%clk 0:00:57.8]} 55... e3 {[%clk 0:00:05.1]} 56. Qb2+ {[%clk
0:00:58.2]} 56... Kh7 {[%clk 0:00:04.7]} 57. Qa2 {[%clk 0:00:58.3]} 57... Qf5
{[%clk 0:00:04]} 58. Qh2+ {[%clk 0:00:56.2]} 58... Kg8 {[%clk 0:00:03.3]} 59.
Qb8+ {[%clk 0:00:56.4]} 59... Kg7 {[%clk 0:00:03.3]} 60. Qb2+ {[%clk 0:00:56.8]}
60... f6 {[%clk 0:00:03.3]} 61. Qb7+ {[%clk 0:00:56.8]} 61... Kh6 {[%clk
0:00:03.3]} 62. Qh1+ {[%clk 0:00:57.2]} 62... Kg5 {[%clk 0:00:03.3]} 63. Qg2+
{[%clk 0:00:57.3]} 63... Kf4 {[%clk 0:00:02.6]} 64. Qf1+ {[%clk 0:00:51.9]}
64... Ke4 {[%clk 0:00:03.4]} 65. Qc4+ {[%clk 0:00:52.4]} 65... Ke5 {[%clk
0:00:03.3]} 66. Qc5+ {[%clk 0:00:53.1]} 66... Ke4 {[%clk 0:00:03.8]} 67. Qc4+
{[%clk 0:00:53.5]} 67... Kf3 {[%clk 0:00:04.3]} 68. Qf1+ {[%clk 0:00:53.8]}
68... Kg4 {[%clk 0:00:03.9]} 69. Qg2+ {[%clk 0:00:53.8]} 69... Kh5 {[%clk
0:00:03.5]} 70. Qh1+ {[%clk 0:00:52.4]} 70... Kg5 {[%clk 0:00:03.5]} 71. Qg2+
{[%clk 0:00:52.9]} 71... Qg4 {[%clk 0:00:03.9]} 72. Qd5+ {[%clk 0:00:53.5]}
72... f5 {[%clk 0:00:04]} 73. Qd8+ {[%clk 0:00:54.3]} 73... Kh5 {[%clk
0:00:02.3]} 74. Qh8+ {[%clk 0:00:54.7]} 74... Kg5 {[%clk 0:00:02.3]} 75. Qd8+
{[%clk 0:00:55.6]} 75... Kf4 {[%clk 0:00:02.2]} 76. Qd4+ {[%clk 0:00:56.4]}
76... Kf3 {[%clk 0:00:01.9]} 77. Qd1+ {[%clk 0:00:57.2]} 77... Kg3 {[%clk
0:00:01.3]} 78. Qd6+ {[%clk 0:00:57.7]} 78... f4 {[%clk 0:00:00.9]} 79. Qc7
{[%clk 0:00:54.2]} 79... g5 {[%clk 0:00:01.8]} 80. Qd7 {[%clk 0:00:54.6]} 80...
Qxd7 {[%clk 0:00:01.4]} 0-1

[Event "Early-Titled-Tuesday-Blitz-March-05-2024"]
[Site "Chess.com"]
[Date "2024.03.05"]
[Round "3"]
[White "NovozhilovSemen"]
[Black "Antipov_Mikhail_Al"]
[Result "0-1"]
[WhiteElo "2643"]
[BlackElo "2942"]
[TimeControl "180+1"]
[EndTime "8:32:56 PST"]
[Termination "Antipov_Mikhail_Al won by checkmate"]

1. d4 {[%clk 0:03:00.9]} 1... Nf6 {[%clk 0:02:59.5]} 2. Nf3 {[%clk 0:03:00.2]}
2... d5 {[%clk 0:02:59.3]} 3. c4 {[%clk 0:03:00.2]} 3... e6 {[%clk 0:02:59.5]}
4. g3 {[%clk 0:03:00.3]} 4... Bb4+ {[%clk 0:02:58.8]} 5. Bd2 {[%clk 0:03:00.2]}
5... Be7 {[%clk 0:02:58.5]} 6. Bg2 {[%clk 0:03:00.3]} 6... O-O {[%clk 0:02:59]}
7. O-O {[%clk 0:03:00.7]} 7... h6 {[%clk 0:02:58]} 8. Qc2 {[%clk 0:02:59.9]}
8... Nbd7 {[%clk 0:02:57.8]} 9. Rd1 {[%clk 0:02:58.6]} 9... c6 {[%clk
0:02:56.4]} 10. b3 {[%clk 0:02:58.1]} 10... Ne4 {[%clk 0:02:54.5]} 11. Bf4
{[%clk 0:02:55.2]} 11... g5 {[%clk 0:02:52.6]} 12. Bc1 {[%clk 0:02:55.1]} 12...
Bd6 {[%clk 0:02:50.4]} 13. Nc3 {[%clk 0:02:54.5]} 13... f5 {[%clk 0:02:50.9]}
14. Bb2 {[%clk 0:02:51.3]} 14... Qf6 {[%clk 0:02:39.9]} 15. Ne1 {[%clk
0:02:38.8]} 15... h5 {[%clk 0:02:21.2]} 16. f3 {[%clk 0:02:11.4]} 16... Nxg3
{[%clk 0:02:16]} 17. hxg3 {[%clk 0:02:08.8]} 17... Bxg3 {[%clk 0:02:16.9]} 18.
e3 {[%clk 0:01:19.9]} 18... Rf7 {[%clk 0:02:10.9]} 19. Ne2 {[%clk 0:01:18]}
19... Bd6 {[%clk 0:02:10.3]} 20. f4 {[%clk 0:01:16.1]} 20... Rg7 {[%clk
0:02:06.6]} 21. Nf3 {[%clk 0:01:13.2]} 21... g4 {[%clk 0:02:06.8]} 22. Ne5
{[%clk 0:01:08.4]} 22... h4 {[%clk 0:02:06.5]} 23. Kf2 {[%clk 0:01:05.3]} 23...
Nf8 {[%clk 0:02:06.3]} 24. Rh1 {[%clk 0:01:03.6]} 24... Bd7 {[%clk 0:02:07]} 25.
c5 {[%clk 0:01:00.8]} 25... Bc7 {[%clk 0:02:06.4]} 26. Ke1 {[%clk 0:00:59.5]}
26... Be8 {[%clk 0:02:03]} 27. Kd2 {[%clk 0:00:59.2]} 27... Rh7 {[%clk
0:01:53.2]} 28. Rag1 {[%clk 0:00:57.1]} 28... Bh5 {[%clk 0:01:52.8]} 29. Bf1
{[%clk 0:00:54.1]} 29... Kh8 {[%clk 0:01:51]} 30. Nc1 {[%clk 0:00:47.1]} 30...
Rg7 {[%clk 0:01:39.6]} 31. Ne2 {[%clk 0:00:42.5]} 31... Nh7 {[%clk 0:01:35.6]}
32. Kc1 {[%clk 0:00:42.5]} 32... Rag8 {[%clk 0:01:30.1]} 33. Nc3 {[%clk
0:00:37.8]} 33... Bd8 {[%clk 0:01:30.2]} 34. Ne2 {[%clk 0:00:33.5]} 34... Qh6
{[%clk 0:01:28.7]} 35. Bc3 {[%clk 0:00:33.2]} 35... g3 {[%clk 0:01:21.1]} 36.
Bg2 {[%clk 0:00:31.4]} 36... Nf6 {[%clk 0:01:20.6]} 37. Bf3 {[%clk 0:00:31.7]}
37... Ne4 {[%clk 0:01:17.4]} 38. Be1 {[%clk 0:00:29]} 38... Bf6 {[%clk
0:01:09.3]} 39. Qd1 {[%clk 0:00:24.2]} 39... Bxf3 {[%clk 0:00:19.6]} 40. Nxf3
{[%clk 0:00:25.1]} 40... Rg4 {[%clk 0:00:14.7]} 41. Nd2 {[%clk 0:00:23.9]} 41...
R8g6 {[%clk 0:00:06.6]} 42. Nxe4 {[%clk 0:00:21.6]} 42... dxe4 {[%clk
0:00:06.6]} 43. Nxg3 {[%clk 0:00:20.2]} 43... b6 {[%clk 0:00:03.8]} 44. cxb6
{[%clk 0:00:19.7]} 44... axb6 {[%clk 0:00:04.7]} 45. Ne2 {[%clk 0:00:19.9]}
45... Kg7 {[%clk 0:00:05.1]} 46. Rxg4 {[%clk 0:00:19.1]} 46... fxg4 {[%clk
0:00:06]} 47. Nc3 {[%clk 0:00:18.1]} 47... g3 {[%clk 0:00:06.5]} 48. Rh3 {[%clk
0:00:04.3]} 48... g2 {[%clk 0:00:06.7]} 49. Bf2 {[%clk 0:00:04.8]} 49... Kf7
{[%clk 0:00:03]} 50. Nxe4 {[%clk 0:00:05.3]} 50... Rg7 {[%clk 0:00:03.7]} 51.
Nxf6 {[%clk 0:00:05.4]} 51... Qxf6 {[%clk 0:00:04.6]} 52. Bg3 {[%clk 0:00:05.6]}
52... Rxg3 {[%clk 0:00:03.1]} 53. Rxg3 {[%clk 0:00:05.8]} 53... hxg3 {[%clk
0:00:04]} 54. Qg1 {[%clk 0:00:05.9]} 54... Qh4 {[%clk 0:00:03.5]} 55. Qxg2
{[%clk 0:00:06.3]} 55... Qh2 {[%clk 0:00:04.4]} 56. Qxc6 {[%clk 0:00:05.2]}
56... Qg1+ {[%clk 0:00:03.5]} 57. Kb2 {[%clk 0:00:05]} 57... Qf2+ {[%clk
0:00:04.4]} 58. Ka3 {[%clk 0:00:05.1]} 58... g2 {[%clk 0:00:03.7]} 59. Qd7+
{[%clk 0:00:02.6]} 59... Kf6 {[%clk 0:00:04.6]} 60. Qd8+ {[%clk 0:00:03]} 60...
Kf5 {[%clk 0:00:04.9]} 61. Qg8 {[%clk 0:00:03.7]} 61... Ke4 {[%clk 0:00:05.6]}
62. Qxe6+ {[%clk 0:00:03.9]} 62... Kd3 {[%clk 0:00:05]} 63. Qg6+ {[%clk
0:00:04.3]} 63... Kd2 {[%clk 0:00:05.1]} 64. d5 {[%clk 0:00:03.4]} 64... g1=Q
{[%clk 0:00:06]} 65. Qe4 {[%clk 0:00:03.6]} 65... Qxe3 {[%clk 0:00:06.1]} 66.
Qb4+ {[%clk 0:00:03.2]} 66... Kc2 {[%clk 0:00:06.3]} 67. Qc4+ {[%clk 0:00:03.3]}
67... Qc3 {[%clk 0:00:06.5]} 68. Qe4+ {[%clk 0:00:03.8]} 68... Kc1 {[%clk
0:00:06.4]} 69. d6 {[%clk 0:00:01.4]} 69... Qgc5+ {[%clk 0:00:07]} 70. Qb4
{[%clk 0:00:01.6]} 70... Q5xb4# {[%clk 0:00:07.1]} 0-1